Cogmind - Beta 13 @@@ ROGUE MODE // 2024.05.27 @ 13:26:33 Player: Bace Troncons Result: Destroyed by Y-54 Guardian with Gatling Laser Performance ------------- Evolutions (0) 0 Regions Visited (3) 600 Robots Destroyed (11) 55 Value Destroyed (389) 389 Prototype IDs (13) 260 Alien Tech Used (0) 0 Bonus (0) 0 TOTAL SCORE: 1304 Bonus ------- None Cogmind --------- Core Integrity 0/250 Matter 300/300 Energy 100/100 System Corruption 0% Temperature Cool (12) Movement Core (100) Ox1 Location -7/Recycling Parts ------- > --- POWER (1) -------- (None) > --- PROPULSION (2) --- (None) > --- UTILITY (2) ------ Armored Scrap Engine > --- WEAPON (2) ------- Makeshift Axe > --- INVENTORY (5) ---- Terrain Scanner Seismic Detector Cloaking Device Rainbow Chip Power Maul Peak State ------------ > --- POWER ------------ Multi-Ion Engine > --- PROPULSION ------- Light Treads Aluminum-Compact Exoskeleton > --- UTILITY ---------- Armored Scrap Engine > --- WEAPON ----------- Kinetic Assault Construct/C Makeshift Axe > --- INVENTORY -------- Terrain Scanner Seismic Detector Weapon Cycler Makeshift Light Armor Plating Rainbow Chip [Rating: 33] Favorites ----------- Power Light Ion Engine Engine Light Ion Engine Propulsion Light Treads Treads Light Treads Leg Constructs Utility Large Storage Unit Device Terrain Scanner Storage Large Storage Unit Weapon Battle Rifle Ballistic Gun Battle Rifle Ballistic Cannon Constructs Slashing Weapon Makeshift Axe Build | -11 -10 -10 -7 ------- Run | Yrd Mat Sub Rec Slots Evolved . | . . . . Power . | . . . . Propulsion . | . . . . Utility . | . . . . Weapon . | . . . . Parts Attached 17 | 6 1 9 1 Power 1 | 1 . . . Engine 1 | 1 . . . Core . | . . . . Reactor . | . . . . Propulsion 2 | 2 . . . Treads 2 | 2 . . . Leg . | . . . . Wheel . | . . . . Hover . | . . . . Flight . | . . . . Utility 4 | 1 1 1 1 Device 2 | . . 1 1 Storage 2 | 1 1 . . Processor . | . . . . Hackware . | . . . . Protection . | . . . . Artifact . | . . . . Weapon 10 | 2 . 8 . Energy Gun . | . . . . Energy Cannon . | . . . . Ballistic Gun 7 | 2 . 5 . Ballistic Cannon . | . . . . Launcher . | . . . . Special Weapon . | . . . . Impact Weapon . | . . . . Slashing Weapon 3 | . . 3 . Piercing Weapon . | . . . . Special Melee Weapon . | . . . . Unidentified Prototypes . | . . . . Parts Lost 5 | . . . 5 Power 1 | . . . 1 Propulsion 3 | . . . 3 Utility . | . . . . Weapon 1 | . . . 1 Highest Loss Streak 2 | . . . 2 To Critical Strikes . | . . . . Average Slot Usage (%) 93 | . 85 99 67 Engine 12 | . 14 14 6 Treads 25 | . 28 28 14 Device 13 | . . 13 14 Storage 11 | . 14 14 . Ballistic Gun 23 | . 28 27 2 Ballistic Cannon 1 | . . . 11 Slashing Weapon 2 | . . . 14 Naked Turns . | . . . . Heaviest Build 31 | 11 26 31 14 Greatest Support 40 | 40 40 40 40 Greatest Overweight (x) 3 | 2 . . 3 Average Overweight (x) . | . . . . Largest Inventory Capacity 15 | 8 15 15 5 Average Capacity 13 | 7 13 15 5 Most Carried 12 | 4 6 12 5 Average Carried 8 | 3 5 9 4 Final Capacity 15 | 8 15 15 5 Final Carried 11 | 4 6 11 5 Scrap Engine Consumption 38 | . . . 38 Constructs Created 3 | . . . 3 Constructs Modified 6 | . . . 6 Class Distribution -------------------- 86% | Mutant 13% | Construct Dominant Class ---------------- Mutant | -10/Materials Mutant | -10/Subcaves Construct | -7/Recycling Resources | -11 -10 -10 -7 ----------- Run | Yrd Mat Sub Rec Matter Collected 556 | 247 . 277 32 Remotely . | . . . . Salvage Created 912 | . . 149 763 Parts 31 | . . 13 18 Haulers Intercepted . | . . . . Recyclers Shooed 1 | . . . 1 Parts Field Recycled . | . . . . Retrieved Matter . | . . . . Parts Self-Destructed 10 | . . 10 . Prevented . | . . . . Kills | -11 -10 -10 -7 ------- Run | Yrd Mat Sub Rec Combat Hostiles Destroyed 8 | . . 4 4 Melee 4 | . . . 4 Guns 4 | . . 4 . Classes Destroyed 5 | . . 3 2 Recycler 3 | . . . 3 Grunt 1 | . . 1 . Duelist 1 | . . . 1 Sentry 4 | . . 1 3 Subdweller 2 | . . 2 . Best Kill Streak 2 | . . 2 2 Combat Bots Only 2 | . . 2 1 Max Kills in Single Turn 1 | . . 1 1 Gunslinging . | . . . . Exploded . | . . . . Melee 1 | . . . 1 Uniques/NPCs Destroyed . | . . . . Combat | -11 -10 -10 -7 -------- Run | Yrd Mat Sub Rec Hostile Shots Fired 168 | . 3 23 142 Missed 41 | . 1 4 36 Damage Taken 1305 | . 15 270 1020 Core 250 | . . 50 200 Absorbed by Shields . | . . . . Regen/Repaired (Parts) 130 | . . . 130 Core Remaining (%) 100 | 100 . . . Volleys Fired 37 | . 2 33 2 Largest 2 | . 2 2 1 Hottest 55 | . 40 55 42 Shots Fired 70 | . 4 64 2 Gun 68 | . 4 64 . Cannon 2 | . . . 2 Launcher . | . . . . Special . | . . . . Kinetic 70 | . 4 64 2 Thermal . | . . . . Explosive . | . . . . Electromagnetic . | . . . . Robot Hit Streak 8 | . 1 8 3 Robot Miss Streak 3 | . 2 3 . Penetration Max . | . . . . Secondary Targets . | . . . . Shots Hit Robots 53 | . 2 15 36 Core Hits 20 | . . 5 15 Critical Kills . | . . . . Critical Parts Destroyed . | . . . . Critical Strikes 1 | . . . 1 Sever 1 | . . . 1 Melee Attacks 54 | . . 12 42 Impact . | . . . . Slashing 54 | . . 12 42 Piercing . | . . . . Sneak Attacks 6 | . . . 6 Combat Hostiles 2 | . . . 2 Follow-up Attacks . | . . . . Damage Inflicted 2098 | . 25 271 1802 Guns 296 | . 25 271 . Cannons 49 | . . . 49 Explosions . | . . . . Melee 1753 | . . . 1753 Ramming . | . . . . Kinetic 345 | . 25 271 49 Thermal . | . . . . Explosive . | . . . . Electromagnetic . | . . . . Impact . | . . . . Slashing 1753 | . . . 1753 Piercing . | . . . . Highest Corruption . | . . . . Average Corruption . | . . . . Corruption Purged . | . . . . Corruption Blocked . | . . . . Overload Shots . | . . . . Overflow Damage 242 | . . . 242 Projectiles . | . . . . Explosions . | . . . . Melee 242 | . . . 242 Knockbacks . | . . . . Impact . | . . . . Kinetic . | . . . . Secondary . | . . . . Self-Inflicted Damage . | . . . . Shots . | . . . . Rammed . | . . . . Targets Rammed . | . . . . Kicked . | . . . . Crushed . | . . . . Highest Temperature . | . . . . Average Temperature . | . . . . Received Heat Transfer 240 | . . 90 150 Siege Activations . | . . . . Robots Corrupted . | . . . . Combat Hostiles . | . . . . Parts Fried . | . . . . Impact Corruptions . | . . . . Robots Melted . | . . . . Combat Hostiles . | . . . . Parts Melted . | . . . . Heat Transferred . | . . . . Parts Sabotaged . | . . . . Parts Stolen . | . . . . Parts Stripped . | . . . . Power Chain Reactions . | . . . . Alert | -11 -10 -10 -7 ------- Run | Yrd Mat Sub Rec Peak Influence 80 | . . . 80 Initial 43 | . . . 43 Average 22 | . . . 32 Maximum Alert Level . | . . . . Low Security (%) 100 | 100 100 . 100 Level 1 . | . . . . Level 2 . | . . . . Level 3 . | . . . . Level 4 . | . . . . Level 5 . | . . . . High Security . | . . . . Max Security . | . . . . Squads Dispatched . | . . . . Investigation . | . . . . Extermination . | . . . . Reinforcement . | . . . . Assault . | . . . . Garrison . | . . . . Intercept . | . . . . Searches Triggered . | . . . . Construction Impeded . | . . . . Haulers Reinforced . | . . . . Active Scanning Responses . | . . . . Cargo Convoy Interrupts . | . . . . Stealth | -11 -10 -10 -7 --------- Run | Yrd Mat Sub Rec Distress Signals . | . . . . Communications Jammed . | . . . . Distress Signals . | . . . . Times Spotted 22 | . 4 12 6 Peak Tracking Total 5 | . 2 5 3 Tactical Retreats 2 | . . 2 . Traps | -11 -10 -10 -7 ------- Run | Yrd Mat Sub Rec Traps Triggered . | . . . . Indirectly . | . . . . Trap Hack Attempts . | . . . . Triggered . | . . . . Disarmed . | . . . . Reprogrammed . | . . . . Reused . | . . . . Traps Extracted . | . . . . Installed . | . . . . Triggered . | . . . . Machines | -11 -10 -10 -7 ---------- Run | Yrd Mat Sub Rec Machines Disabled 1 | . . 1 . Max in Single Turn 1 | . . 1 . Machines Repaired . | . . . . Machines Dismantled . | . . . . Machines Sabotaged . | . . . . Overloaded Fab Kills . | . . . . Hacking | -11 -10 -10 -7 --------- Run | Yrd Mat Sub Rec Machines Accessed 12 | . 2 1 9 Terminals 7 | . 2 . 5 Fabricators . | . . . . Repair Stations . | . . . . Recycling Units 4 | . . . 4 Scanalyzers . | . . . . Garrison Access . | . . . . Total Hacks 25 | . 5 1 19 Successful 10 | . 2 1 7 Failed 15 | . 3 . 12 Catastrophic 2 | . . . 2 Database Lockouts . | . . . . Manual 3 | . . . 3 Terminals 18 | . 5 . 13 Fabricators . | . . . . Repair Stations . | . . . . Recycling Units 6 | . . . 6 Scanalyzers . | . . . . Garrison Access . | . . . . Terminal Hacks 6 | . 2 1 3 Part Schematic 2 | . . . 2 Hauler Manifests 1 | . 1 . . Registered Components 1 | . . . 1 Zone Layout 1 | . 1 . . Derelict Proto ID Bank 1 | . . 1 . Fabricator Hacks . | . . . . Repair Station Hacks . | . . . . Recycling Unit Hacks 4 | . . . 4 Retrieve Components 4 | . . . 4 Scanalyzer . | . . . . Garrison Access Hacks . | . . . . Unauthorized Hacks . | . . . . Terminals . | . . . . Fabricators . | . . . . Repair Stations . | . . . . Recycling Units . | . . . . Scanalyzers . | . . . . Garrison Access . | . . . . Data Cores Recovered . | . . . . Used . | . . . . Hacking Detections 8 | . 1 . 7 Full Trace Events 1 | . . . 1 Feedback Events . | . . . . Feedback Blocked . | . . . . Robot Schematics Acquired . | . . . . Robots Built . | . . . . Authchips . | . . . . Time . | . . . . Total Robot Build Rating . | . . . . Part Schematics Acquired 2 | . . . 2 Parts Built . | . . . . Authchips . | . . . . Time . | . . . . Total Part Build Rating . | . . . . Parts Repaired . | . . . . Time . | . . . . Parts Recycled . | . . . . Recycled Matter . | . . . . Retrieved Matter . | . . . . Retrieved Components 6 | . . . 6 Parts Scanalyzed . | . . . . Part Schematics Acquired . | . . . . Parts Damaged . | . . . . Bothacking | -11 -10 -10 -7 ------------ Run | Yrd Mat Sub Rec Used RIF Installer . | . . . . Robots Hacked . | . . . . Non-combat . | . . . . Combat . | . . . . Robot Hacks Applied . | . . . . Relay Couplers Released . | . . . . Fabnet Peak Effective % . | . . . . Robots Rewired . | . . . . Allies Hacked . | . . . . Hacks Repelled . | . . . . Allies | -11 -10 -10 -7 -------- Run | Yrd Mat Sub Rec Total Allies . | . . . . Largest Group . | . . . . Highest-Rated Group . | . . . . Highest-Rated Ally . | . . . . Total Orders . | . . . . Ally Attacks . | . . . . Total Damage . | . . . . Kills . | . . . . Allies Corrupted . | . . . . Allies Melted . | . . . . Intel | -11 -10 -10 -7 ------- Run | Yrd Mat Sub Rec Robot Analysis Total . | . . . . Derelict Logs Recovered 2 | . . 2 . Drone Launches . | . . . . Drone Recoveries . | . . . . Exploration | -11 -10 -10 -7 ------------- Run | Yrd Mat Sub Rec Turns Passed 7151 | 64 439 5523 1125 Spaces Moved 2002 | 35 84 1266 617 Core 134 | 15 . . 119 Treads 1651 | 20 84 1266 281 Legs 217 | . . . 217 Wheels . | . . . . Hover . | . . . . Flight . | . . . . Fastest Speed 50 | 50 160 160 144 Average Speed 161 | 150 160 160 164 Slowest Speed 200 | 160 160 160 200 Overloaded Moves . | . . . . Propulsion Burnouts . | . . . . Robots Hopped . | . . . . Cave-ins Triggered . | . . . . Exploration Rate (%) 48 | 4 17 75 96 Regions Visited 3 Branch Regions 2 Pre-discovered Areas 3 | . . 3 . Known Exits Taken . | . . . . Unknown Exits Taken 3 | 1 1 1 . Scrap Searched 4 | . . 4 . Spaces Dug 6 | . . 4 2 Terrain Destroyed 6 | . . 4 2 Melee 6 | . . 4 2 Projectile . | . . . . AOE . | . . . . Terrain Rammed . | . . . . Walls Destroyed . | . . . . Machines Disabled . | . . . . Actions | -11 -10 -10 -7 --------- Run | Yrd Mat Sub Rec Total 5805 | 44 386 4687 688 Wait 3669 | . 296 3359 14 Move 1999 | 34 83 1265 617 Hop . | . . . . Pick Up 17 | 4 2 7 4 Fast Attach 8 | 6 1 . 1 Attach 2 | . . 2 . Detach 2 | . 1 1 . Swap 7 | . . 7 . Drop 10 | . 1 1 8 Fire 37 | . 2 33 2 Melee 54 | . . 12 42 Ram . | . . . . Kick . | . . . . Crush . | . . . . Escape Stasis . | . . . . Rewire . | . . . . Trap . | . . . . Miscellaneous . | . . . . Route ------- -11/Scrapyard -10/Materials -10/Subcaves (discovered 3 exits: [*Mat x2] / *Rec) -7/Recycling (discovered 1 exit: [*Fac]) History --------- Turn | Location | Event 21 | -11/Scrapyard | Discovered new exit (range 16) 65 | -11/Scrapyard | Entered Materials 304 | -10/Materials | Build established: Mutant 486 | -10/Materials | Discovered new exit (range 7) 504 | -10/Materials | Entered Subcaves 937 | -10/Subcaves | Shifting Twisted Machinery released Battle Rifle 951 | -10/Subcaves | Discovered new exit (range 6) 1158 | -10/Subcaves | Shifting Twisted Machinery released Mak. Light Armor Plating 2130 | -10/Subcaves | Learned location of Zion (-7) 2130 | -10/Subcaves | Met a Zionite searching for "candidates" 2952 | -10/Subcaves | Visited 4L-MR0's lab 2978 | -10/Subcaves | Found Rainbow Chip 3407 | -10/Subcaves | A swath of the cavern ceiling suddenly collapsed 4650 | -10/Subcaves | Discovered new exit (range 7) 6023 | -10/Subcaves | Discovered new exit (range 2) 6027 | -10/Subcaves | Entered Recycling 6028 | -7/Recycling | Found Scrap Engine 6469 | -7/Recycling | Discovered new exit (range 10) 6498 | -7/Recycling | Build established: Construct 7144 | -7/Recycling | Core integrity fell below 50% 7149 | -7/Recycling | Core integrity fell below 20% 7152 | -7/Recycling | Destroyed by Y-54 Guardian with Gatling Laser Last Messages --------------- 06883_ Y-54 Guardian springs to life. 06883_ Aluminum-Compact Exoskeleton destroyed. 06883_ Arm. Scrap Engine damaged due to network destabilization (-10). 06886_ Y-54 Guardian Imp. Light Armor Plating severed. 06888_ Y-54 Guardian destroyed. 06889_ Arm. Scrap Engine consumes Lgt. Treads. 06891_ Arm. Scrap Engine consumes Imp. Light Armor Plating. 06907_ R-06 Scavenger collects Imp. Heat Sink. 06921_ Arm. Scrap Engine reinforces its armored shell (+15). 07128_ I-36 Angel springs to life. 07131_ L-41 Fighter springs to life. 07137_ Kinetic Assault Construct/C destroyed. 07137_ Arm. Scrap Engine damaged due to network destabilization (-6). 07149_ T-07 Excavator destroyed. 07151_ L-41 Fighter destroyed. Map ----- +----------------------------------------------------+ | ?????# #?# #?????# | | ?????# #?# #?????# | | ?????# #?# #?????# | | ????## #?# #?????# | | ????# % #?# #?????# | | ????## ###########+########### | | ?????# | | ?????# #####+#####+### ## | | ?????# ## # #? | | ????## ## + #? | | ????# # ##%###### #? | | ????# # ####????# #? | | ????# + #???????# #? | | ????# # #??????## ## | | ????# # #??????# # | | ????## ## #??????# % | | ?????# ## #??????# | | ?????# ## #??????# % | | ?????# ## #??????# # | | ?????# ## #??????# # | | ?????# ########## ####??????# !" | | ?????# ##???????###?????????# ! Y | | ?????# ##########???????????# " | | ?????# # !iY #?########### # | | ?????# # k k#?# # # | | ?????# #@ = /#?# # # | | ????# #[%/ l #?# """ # # | | ????## #!Y % #?# """"" # # | | ?????# #r i #?# """"" # # | | ?????# /i t #?# """"" + + | | ?????# # ! [ #?# """ # # | | ?????# # g #?# # + | | ?????# ##########?########### # | | ?????# #??????????????# # | | ?????# #??????????????# ######+## | | ?????# #??????????????# # | | ?????# ###????????????# # | | ?????# ################ # | | ???### # | | ???#"" + | | ???#"T """ ####%### | | ???### """ #??###?# | | ?????# """ #??????# | | ?????# < #??????# | | ?????# #?###### | | ?????### """ #?# + | | ???????# """ #?# #### | | ???????# """ ### ##?#####+##+ | | ???????# ## ####### | | ???????# T | +----------------------------------------------------+ Best States ------------- Heat Dissipation 25 Energy Generation 12 Energy Capacity 133 Matter Stores 300 Matter Capacity 300 Sight Range 16 Terrain Scan Range 14 Terrain Scan Density 10 Evasion (%) 55 Recoil Reduction 2 Item Schematics ----------------- Enh. Gauss Cannon | -7/Recycling | Hacked Phase Shifter | -7/Recycling | Hacked Robot Schematics ------------------ None Fabricated ------------ Nothing Alien Tech Used ----------------- None Achievements -------------- None Challenges ------------ None Game ------ Seed ElectronWarpReplicator Manual? 0 Play Time 00:28:02 Cumulative 88.0 hours Start 2024.05.27 @ 12:43:58 End 2024.05.27 @ 13:26:33 Sessions 1 Manual Loads 0 Difficulty Rogue Special Mode None Game No. 146 Rogue 146 Adventurer 0 Explorer 0 Win Type - Total 1 Types 1/0/0/0/0/0/0/0/0 Lore% 40 Gallery% 44 Achievement% 32 Wizard Run 0 Options --------- Layout 1 ASCII 0 Keyboard 1 Movement Numpad Keybinds 0 Fullscreen 1 Font 24/Smallcaps Map View 50x35 Zoom Use 0% Tactical HUD 1 Map Filters NONE Filters NONE Steam 1 RUN: b129aa21-d478-4fbd-bccb-af0b130611a1